[Event "10th Iberoamericano-ch 2024"]
[Site "Linares"]
[Date "2024.09.25"]
[Round "1.21"]
[White "Fernandez Sanchez, Fernando Miguel"]
[Black "Jodorcovsky Werjivker, Paulo"]
[Result "1-0"]
[ECO "D02"]
[WhiteElo "2399"]
[BlackElo "2092"]
[Annotator "TA"]
[PlyCount "87"]
[EventDate "2024.09.25"]
[EventType "swiss"]
[EventCountry "ESP"]
[SourceTitle "playchess.com"]
[Source "ChessBase"]
[SourceQuality "1"]
[TimeControl "5400+30"]

{[%evp 9,87,-1,10,10,20,22,25,21,34,31,25,23,31,29,19,21,50,49,66,70,71,62,66,57,59,58,58,64,61,68,75,62,62,67,57,40,35,16,37,41,53,8,29,14,39,53,46,17,18,13,12,0,0,0,0,0,76,24,99,75,210,236,256,244,227,209,275,274,1070,507,1204,1131,29969,29970,29972,29973,29977,29976,29976,29976]} 1. Nf3 {[%emt 0:08:27]} d5 {[%emt 0:01:02]} 2. d4 {[%emt 0:00:07]} Nf6 {[%emt 0:00:12]} 3. c3 {[%emt 0:00:05]} c6 {[%emt 0:00:52]} 4. Qc2 {[%emt 0:00:44]} g6 {[%emt 0:00:33]} 5. h3 {[%emt 0:00:16]} Bg7 {[%emt 0:00:22]} 6. Bf4 {[%emt 0:00:15]} O-O {[%emt 0:01:58][%cal Oc6c5]} 7. e3 {[%emt 0:00:07]} Bf5 {[%emt 0:00:19]} 8. Qb3 {[%emt 0:00:19] White has an edge.} Qb6 {[%emt 0:00:24]} 9. Nbd2 {[%emt 0:00:15]} Nbd7 {[%emt 0:05:30]} 10. g4 {[%emt 0:09:52]} Be4 {[%emt 0:03:33]} 11. Rg1 {[%emt 0:00:48]} Bxf3 {[%emt 0:02:33]} 12. Nxf3 {[%emt 0:00:02]} Qxb3 {[%emt 0:02:10]} (12... Ne4 {is more complex.} 13. Bd3 Rfe8 14. Ke2 e5) 13. axb3 {[%emt 0:00:02]} a6 {[%emt 0:00:26]} 14. h4 {White is more active.} Rfe8 {[%emt 0:03:59]} 15. Bh3 {[%emt 0:09:43] [#] g5 would now be deadly.} Nf8 {[%emt 0:01:59]} 16. g5 {[%emt 0:36:06]} N6d7 {[%emt 0:00:42]} 17. O-O-O {[%emt 0:03:17]} e5 {[%emt 0:03:58]} 18. Bh2 {[%emt 0:00:04]} exd4 {[%emt 0:00:41]} 19. exd4 {[%emt 0:12:57]} Re2 {[%emt 0:04:13]} 20. Rde1 {[%emt 0:01:56]} Rae8 {[%emt 0:02:12]} (20... Rxf2 $6 21. Rg3 Nf6 22. gxf6 Bh6+ 23. Kb1 $18) 21. Kd1 {[%emt 0:00:27]} Rxe1+ {[%emt 0:01:23]} 22. Rxe1 {[%emt 0:00:02]} Rxe1+ {[%emt 0:00:39]} 23. Kxe1 {[%emt 0:00:02]} Ne6 {[%emt 0:04:07]} 24. b4 {[%emt 0:00:55]} Nb6 {[%emt 0:08:07]} 25. Nd2 {[%emt 0:01:38]} Na4 {[%emt 0:06:10]} 26. Nb3 {[%emt 0:00:21]} ({Of course not} 26. Bxe6 fxe6 27. Nb3 b6 $17 (27... Nxb2 28. Nc5 $11)) 26... b6 {[%emt 0:17:11] Against Na5} 27. Bf1 $1 {[%emt 0:00:11]} h6 {[%emt 0:01:10]} 28. gxh6 {[%emt 0:09:47]} Bxh6 {[%emt 0:00:08]} 29. Bxa6 {[%emt 0:00:11] Threatening Bb7.} Nxb2 {[%emt 0:03:19]} 30. Ke2 {[%emt 0:00:38]} Bf4 {[%emt 0:02:39]} 31. Bg3 {[%emt 0:00:13]} Na4 {[%emt 0:01:50]} 32. Kd3 {[%emt 0:00:13]} c5 {[%emt 0:06:42]} (32... Nb2+ $11 33. Kc2 Nc4) 33. Kc2 {[%emt 0:02:25]} ({White should play} 33. Bxf4 $16 c4+ (33... Nxf4+ 34. Kc2 $14) 34. Kc2 Nxf4 35. Nc1) 33... c4 {[%emt 0:06:04]} (33... Bxg3 $1 $11 {keeps the balance.} 34. fxg3 Nc7) 34. Bxf4 {[%emt 0:00:34]} cxb3+ {[%emt 0:04:56] Black cannot hold the game after this.} (34... Nxf4 $16 35. Nd2 b5) 35. Kxb3 $18 {[%emt 0:00:03]} Nxc3 $16 {[%emt 0:00:11][%mdl 4096] Endgame. KBB-KNN} 36. Be5 {[%emt 0:00:28]} Ne4 {[%emt 0:01:05]} 37. Bb7 {[%emt 0:00:19]} Nxf2 {[%emt 0:02:44]} 38. Bxd5 {[%emt 0:00:03]} Nd3 $2 {[%emt 0:01:49] [#]} (38... Kf8 39. Bf3 Ke8) 39. Bxe6 $18 {[%emt 0:00:57]} fxe6 {[%emt 0:01:06]} 40. Kc4 {[%emt 0:00:02]} Nb2+ {[%emt 0:00:57]} 41. Kb5 {[%emt 0:00:08] White mates.} Nd3 {[%emt 0:00:04]} 42. Bd6 {[%emt 0:00:10]} ({And not} 42. Kxb6 Nxb4 43. Kc5 Nd5 $11) 42... Kf7 {[%emt 0:00:43]} 43. Kxb6 {[%emt 0:00:10]} Ke8 {[%emt 0:00:24]} 44. Kc7 {[%emt 0:00:52] Weighted Error Value: White=0.06 (flawless) /Black=0.29 (precise) .  Mistake:       	White=1     	Black=4      Inaccurate:     	White=2     	Black=4      OK:         	White=7     	Black=11     Best:        	White=3     	Black=1      Strong:       	White=1     	---} 1-0

[Event "10th Iberoamericano-ch 2024"]
[Site "Linares"]
[Date "2024.09.25"]
[Round "1.22"]
[White "Sicilia Laino, Juan Diego"]
[Black "Ynojosa Aponte, Felix Jose"]
[Result "0-1"]
[ECO "B33"]
[WhiteElo "2090"]
[BlackElo "2398"]
[Annotator "TA"]
[PlyCount "73"]
[EventDate "2024.09.25"]
[EventType "swiss"]
[EventCountry "ESP"]
[SourceTitle "playchess.com"]
[Source "ChessBase"]
[SourceQuality "1"]
[TimeControl "5400+30"]

{[%evp 21,73,29,31,-3,12,0,-3,-1,6,0,9,0,-15,-16,16,0,8,8,12,0,18,9,15,5,10,5,79,72,56,20,22,25,26,-18,0,0,0,-116,-119,-137,-139,-127,-144,-233,-170,-166,-166,-173,-181,-293,-279,-313,-287,-472]} 1. e4 {[%emt 0:00:03]} c5 {[%emt 0:00:03]} 2. Nf3 {[%emt 0:00:07][%cal Bg1f3,Bf3d4,Bd4b5][%mdl 32]} Nc6 {[%emt 0:00:03]} 3. d4 {[%emt 0:01:05]} cxd4 {[%emt 0:00:04]} 4. Nxd4 {[%emt 0:00:09]} e5 {[%emt 0:00:02]} 5. Nb5 {[%emt 0:00:43]} d6 {[%emt 0:00:04]} 6. N1c3 {[%emt 0:00:19]} a6 {[%emt 0:00:04]} 7. Na3 {[%emt 0:00:08]} b5 {[%emt 0:00:02]} 8. Nd5 {[%emt 0:00:09]} Nf6 {[%emt 0:00:02]} 9. Bg5 {[%emt 0:00:21]} Be7 {[%emt 0:00:03][%cal Bf8e7,Be7f6,Bf6g5,Bg5h6][%mdl 32]} 10. Bxf6 {[%emt 0:01:03]} Bxf6 {[%emt 0:00:03]} 11. c3 {[%emt 0:02:58]} Bg5 {[%emt 0:00:04]} 12. g3 {[%emt 0:02:10]} O-O {[%emt 0:00:24]} 13. h4 {[%emt 0:02:23]} Bh6 {[%emt 0:00:01]} 14. Bh3 {[%emt 0:02:00] The position is equal.} Be6 {[%emt 0:00:04]} 15. Nc2 {[%emt 0:03:49]} Rb8 {[%emt 0:00:16]} 16. Nce3 {[%emt 0:06:42]} (16. Bf5 {feels hotter.} Bxd5 17. Qxd5 Qb6 18. O-O) 16... Bxe3 {[%emt 0:00:23]} 17. Nxe3 {[%emt 0:00:07]} Qd7 {[%emt 0:01:08]} (17... Bxh3 {simplifies} 18. Rxh3 b4 19. h5 h6) 18. Bf5 {[%emt 0:18:14]} (18. Bxe6 {simplifies} fxe6 19. Qd3 Rbd8 20. Rd1) 18... b4 {[%emt 0:01:03]} 19. Qh5 {[%emt 0:05:53][%csl Gf5][%cal Rh5h7] [#]} g6 {[%emt 0:00:26]} (19... Bxf5 {simplifies} 20. Qxf5 Qb7 21. O-O Ne7) 20. Qh6 {[%emt 0:00:24][%cal Oh4h5] Threatens to win with h5!} Ne7 {[%emt 0:05:16]} 21. Bxe6 {[%emt 0:22:22]} Qxe6 {[%emt 0:01:35]} 22. h5 {[%emt 0:03:34]} bxc3 {[%emt 0:00:10]} 23. bxc3 {[%emt 0:01:48]} Rfc8 {[%emt 0:02:53]} (23... f5 $1 $11) 24. hxg6 $16 {[%emt 0:00:42]} Qxg6 {[%emt 0:00:07]} 25. Qh4 {[%emt 0:00:08]} (25. Rd1 {simplifies} Rxc3 26. Rxd6 Qxh6 27. Rhxh6 Ra3 28. Kf1) 25... Rb7 {[%emt 0:05:18][%cal Of7f5]} 26. c4 {[%emt 0:05:48]} Nc6 {[%emt 0:01:17][%cal Be7c6,Bc6d4,Bd4f3,Bf3d2,Bd2e4][%mdl 32]} 27. Nd5 {[%emt 0:03:07]} Nd4 {[%emt 0:00:42] Strongly threatening ...Nf3+.} 28. Kf1 {[%emt 0:05:08]} Nf3 $36 {[%emt 0:02:49][%mdl 2048] White is under pressure.} (28... Rxc4 $2 29. Nf6+ Kf8 30. Nxh7+ Ke8 31. Nf6+ Ke7 32. Nd5+ Kd7 33. Qe7+ Kc6 34. Qe8+ Kc5 35. Qc8+ Nc6 36. Qxb7 $18) 29. Nf6+ {[%emt 0:04:36]} (29. Ne7+ $11 {remains equal.} Rxe7 30. Qxe7) 29... Kg7 $17 {[%emt 0:01:34] The board is on fire.} 30. Nh5+ {[%emt 0:00:08] [#]} Kf8 $1 {[%emt 0:00:27]} 31. Qf6 {[%emt 0:01:25]} Nd2+ {[%emt 0:00:38]} 32. Kg1 {[%emt 0:00:36]} (32. Kg2 $17) 32... Nxe4 {[%emt 0:00:17] Active counter play!} 33. Qh8+ {[%emt 0:05:33]} Qg8 {[%emt 0:00:04]} 34. Qxg8+ {[%emt 0:00:06]} Kxg8 {[%emt 0:00:03]} 35. Rd1 {[%emt 0:01:57]} (35. Re1 $142 f5 (35... Rxc4 $2 36. Rxe4 Rxe4 37. Nf6+ Kg7 38. Nxe4 $18) 36. g4) 35... Rb2 $19 {[%emt 0:00:47]} (35... Rxc4 36. Rh4 Kf8 37. Nf6 $17) 36. Rh4 {[%emt 0:01:02]} f5 {[%emt 0:00:28][%cal Og8f7]} ({Weaker is} 36... Nxf2 37. Nf6+ Kg7 38. Rxd6 $11) (36... Rxc4 $2 {is the wrong capture.} 37. Rxe4 (37. Nf6+ Nxf6 38. Rxc4 Rxa2 $14) 37... Rxe4 38. Nf6+ (38. Rxd6 $2 Re1+ 39. Kg2 Kf8 $19) 38... Kg7 39. Nxe4 $18) 37. Rxe4 $2 {Weighted Error Value: White=0.24 (precise) /Black=0.14 (very precise) .  Mistake:       	White=4     	Black=1      Inaccurate:     	White=2     	Black=1      OK:         	White=6     	Black=10     Best:        	White=1     	Black=2} (37. g4 Nxf2 (37... Rxf2 38. gxf5 Rd2 39. Rb1 $11) 38. Rf1 Nxg4 39. Rxf5 Rb1+ (39... Rxc4 40. Nf6+ Kf7 41. Nxg4+ Kg6 42. Rf1 $17) 40. Rf1 Rxf1+ 41. Kxf1 Ne3+ (41... Rxc4 $2 42. Nf6+ Kf7 43. Nxg4 $19) 42. Ke2 Rxc4 (42... Nxc4 $2 43. Kd3 $19) 43. Rh1) 0-1

[Event "10th Iberoamericano-ch 2024"]
[Site "Linares"]
[Date "2024.09.25"]
[Round "1.23"]
[White "Labiano Hernandez, Juan"]
[Black "Lorente Serrano, Rosa Adela"]
[Result "0-1"]
[ECO "E71"]
[WhiteElo "2398"]
[BlackElo "2087"]
[Annotator "TA"]
[PlyCount "48"]
[EventDate "2024.09.25"]
[EventType "swiss"]
[EventCountry "ESP"]
[SourceTitle "playchess.com"]
[Source "ChessBase"]
[SourceQuality "1"]
[TimeControl "5400+30"]

{[%evp 13,48,24,47,47,39,42,37,50,34,57,81,79,74,68,82,88,124,0,10,-15,0,0,0,0,0,-4,0,-16,-3,-12,152,-1436,-1428,-1404,-1437,-1541,-1530]} 1. d4 {[%emt 0:00:05]} Nf6 {[%emt 0:00:26]} 2. c4 {[%emt 0:00:13]} g6 {[%emt 0:00:29]} 3. Nc3 {[%emt 0:00:10]} Bg7 {[%emt 0:00:37]} 4. e4 {[%emt 0:00:08]} d6 {[%emt 0:00:30]} 5. h3 {[%emt 0:00:10]} O-O {[%emt 0:07:00]} 6. Be3 {[%emt 0:00:04]} e5 {[%emt 0:02:40]} 7. d5 {[%emt 0:00:06]} a5 {[%emt 0:04:02]} 8. g4 {[%emt 0:01:12]} Na6 {[%emt 0:02:13]} 9. Nge2 {[%emt 0:08:24]} h5 {[%emt 0:20:59]} 10. Bg5 {[%emt 0:15:58] White is slightly better.} hxg4 {[%emt 0:08:10]} 11. Ng3 {[%emt 0:01:25]} Qd7 {[%emt 0:02:03]} 12. hxg4 {[%emt 0:08:31]} Nh7 {[%emt 0:02:29]} 13. Be3 {[%emt 0:00:57][%cal Og3f5]} Qxg4 {[%emt 0:01:02]} 14. Qd2 {[%emt 0:00:44]} Qd7 {[%emt 0:02:42]} 15. Bh6 {[%emt 0:11:17]} (15. Bh3 $16 Qd8 16. Bxc8 Rxc8 17. O-O-O) 15... f6 $1 $11 {[%emt 0:03:01][%cal Oh7g5]} 16. O-O-O {[%emt 0:01:12]} Bxh6 {[%emt 0:08:30]} 17. Rxh6 {[%emt 0:00:25]} Qg7 {[%emt 0:00:09]} 18. Be2 {[%emt 0:05:54]} Ng5 {[%emt 0:00:19]} 19. Rdh1 {[%emt 0:00:06]} Bd7 {[%emt 0:03:43]} 20. f4 {[%emt 0:06:20]} exf4 {[%emt 0:00:05]} 21. Qxf4 {[%emt 0:00:12] [#] And now Qh4 would win.} Nc5 $2 {[%emt 0:09:26]} (21... Nf7 $1 $11 22. R6h2 Nc5) 22. Bg4 $2 {[%emt 0:05:48]} (22. Qh4 $16 Kf7 23. Rxg6 Qxg6 24. Bh5 Nd3+ 25. Kb1) 22... Nd3+ $19 {[%emt 0:00:57] Black is clearly winning.} 23. Kc2 {[%emt 0:00:13]} Nxf4 {[%emt 0:00:18]} 24. Bxd7 {[%emt 0:00:06]} Qxd7 {[%emt 0:00:50] Weighted Error Value: White=0.62/Black=0.21 (precise) .  Loses game:     	White=1     	---        Mistake:       	White=1     	Black=1      Inaccurate:     	---       	Black=1      OK:         	White=7     	Black=8      Best:        	White=1     	Black=1      Strong:       	---       	Black=1} 0-1

[Event "10th Iberoamericano-ch 2024"]
[Site "Linares"]
[Date "2024.09.25"]
[Round "1.24"]
[White "Dias, Ivo Rodrigues"]
[Black "Horcajuelo Rocamora, Martin"]
[Result "0-1"]
[ECO "B92"]
[WhiteElo "2077"]
[BlackElo "2394"]
[Annotator "TA"]
[PlyCount "80"]
[EventDate "2024.09.25"]
[EventType "swiss"]
[EventCountry "ESP"]
[SourceTitle "playchess.com"]
[Source "ChessBase"]
[SourceQuality "1"]
[TimeControl "5400+30"]

{[%evp 15,80,15,14,12,0,-8,0,0,0,0,0,0,0,6,2,-15,-10,-15,0,-25,-27,-37,-20,-53,0,-66,-77,-104,-96,-89,-26,-59,-59,-69,-13,-13,-19,-18,-25,-32,-32,-97,-84,-110,-111,-144,-101,-179,-127,-306,-189,-280,-197,-515,-231,-464,-334,-551,-322,-629,-531,-1958,-1905,-29980,-29981,-29980,-29981]} 1. e4 {[%emt 0:05:56]} c5 {[%emt 0:00:09]} 2. Nf3 {[%emt 0:00:29]} d6 {[%emt 0:00:12]} 3. d4 {[%emt 0:00:09]} cxd4 {[%emt 0:00:07]} 4. Nxd4 {[%emt 0:00:02]} Nf6 {[%emt 0:00:14]} 5. Nc3 {[%emt 0:00:05]} a6 {[%emt 0:00:08]} 6. Be2 {[%emt 0:00:33]} e5 {[%emt 0:00:17]} 7. Nb3 {[%emt 0:00:09]} Be7 {[%emt 0:01:04]} 8. g4 {[%emt 0:00:06]} h6 {[%emt 0:05:23]} 9. h4 {[%emt 0:00:02]} b5 {[%emt 0:08:53][%cal Bb7b5,Bb5b4][%mdl 32]} 10. Be3 {[%emt 0:10:40]} Bb7 {[%emt 0:06:27][%cal Ob5b4]} 11. Qd3 {[%emt 0:00:47] The position is equal.} b4 {[%emt 0:13:08]} 12. Nd5 {[%emt 0:02:46]} Nxd5 {[%emt 0:02:34]} 13. exd5 {[%emt 0:00:03]} Nd7 {[%emt 0:16:28][%cal Od7f6]} 14. O-O-O {[%emt 0:11:58]} a5 {[%emt 0:12:54][%cal Ob7a6]} 15. Nd2 {[%emt 0:15:39][%cal Og4g5]} Ba6 {[%emt 0:09:01]} 16. Nc4 {[%emt 0:00:32]} Qc7 {[%emt 0:02:05]} 17. g5 {[%emt 0:05:58]} Rc8 {[%emt 0:02:56]} 18. b3 {[%emt 0:00:47]} Nc5 $36 {[%emt 0:08:13][%mdl 2048] White is under pressure.} 19. Bxc5 {[%emt 0:28:42]} (19. Qf5 {keeps more tension.} g6 20. Qf3 h5 21. Bxc5 Qxc5 22. Qe4) 19... Qxc5 {[%emt 0:00:06]} (19... Bxc4 $1 $15 20. bxc4 Qxc5 (20... dxc5 $2 {is the wrong capture.} 21. d6 $18)) 20. Qe3 {[%emt 0:00:09]} (20. Qd2 $11) 20... Bxc4 $15 {[%emt 0:03:19]} 21. Bxc4 {[%emt 0:00:51]} Qxe3+ {[%emt 0:03:42]} 22. fxe3 {[%emt 0:00:28]} Kd7 {[%emt 0:03:14]} (22... hxg5 $17 23. Bb5+ Kd8 24. hxg5 Rxh1 25. Rxh1 Bxg5 26. Rh8+ Kc7 27. Rxc8+ Kxc8) 23. g6 {[%emt 0:01:26]} fxg6 {[%emt 0:00:21]} 24. Bd3 {[%emt 0:00:06][%cal Od1g1]} Rcf8 {[%emt 0:00:12]} (24... Rc3 $15 25. Rdf1 g5) 25. Bxg6 $11 {[%emt 0:00:19]} Rf3 {[%emt 0:00:13]} 26. Rdf1 {[%emt 0:03:18]} Rhf8 {[%emt 0:00:55]} 27. Rxf3 {[%emt 0:00:18]} Rxf3 {[%emt 0:00:01][%mdl 4096] Endgame. KRB-KRB} 28. e4 {[%emt 0:00:16]} (28. Kd2 $15) 28... Rf4 {[%emt 0:00:36] Black is more active.} 29. h5 {[%emt 0:00:30]} Bg5 {[%emt 0:00:16] [#] ( -> ...Rf1+)} 30. Kb1 {[%emt 0:00:30]} Kc7 {[%emt 0:00:09]} 31. Rd1 {[%emt 0:01:43]} (31. c3 $17 {is a better defense.}) 31... Kb6 {[%emt 0:00:30]} ({Black should play} 31... Rf2 $19 32. Kb2 Kb6) 32. Bh7 $2 {[%emt 0:00:07] This costs White the game.} (32. c4 $17) 32... Rf2 {[%emt 0:01:18]} 33. Bg6 {[%emt 0:00:34]} (33. Rh1 {was necessary.}) 33... Kc5 {[%emt 0:00:18] ...Rh2 is the strong threat.} 34. Bh7 $2 {[%emt 0:00:43]} (34. Rh1) 34... Bd2 {[%emt 0:00:20]} (34... Rh2 $142 35. Bg6 Bd2) 35. Bg6 $2 {[%emt 0:01:03]} (35. Rh1 {only move.}) 35... Kd4 {[%emt 0:00:09]} 36. Bh7 $2 {[%emt 0:02:48]} (36. Rh1 {keeps fighting.}) 36... Ke3 {[%emt 0:00:11] [#] Strongly threatening ...Rh2.} 37. Bg6 $2 {[%emt 0:01:45]} (37. Rh1) 37... Rh2 $19 {[%emt 0:00:25] Hoping for ...Ke2.} 38. Rg1 {[%emt 0:00:39]} Kf2 {[%emt 0:00:15]} 39. Rd1 {[%emt 0:00:14]} Ke2 {[%emt 0:00:04]} 40. Rg1 {[%emt 0:00:21]} Be3 {[%emt 0:00:05] Weighted Error Value: White=1.11/Black=0.31.  Loses game:     	White=1     	---        Mistake:       	White=8     	Black=5      Inaccurate:     	White=6     	Black=2      OK:         	White=5     	Black=10     Best:        	White=2     	Black=2} 0-1

[Event "10th Iberoamericano-ch 2024"]
[Site "Linares"]
[Date "2024.09.25"]
[Round "1.25"]
[White "Leiva, Gianmarco"]
[Black "Castillo Beitia, Ashley Alexandra"]
[Result "1-0"]
[ECO "B77"]
[WhiteElo "2389"]
[BlackElo "2071"]
[Annotator "TA"]
[PlyCount "111"]
[EventDate "2024.09.25"]
[EventType "swiss"]
[EventCountry "ESP"]
[SourceTitle "playchess.com"]
[Source "ChessBase"]
[SourceQuality "1"]
[TimeControl "5400+30"]

{[%evp 26,111,30,26,137,133,130,137,209,213,224,193,214,175,167,168,177,192,186,175,206,175,179,166,226,208,232,183,230,165,183,162,171,162,220,187,218,219,200,201,212,182,210,173,202,210,218,216,223,220,223,218,255,251,306,293,488,214,694,475,4718,4132,29964,29967,29958,29963,4133,2181,2623,1901,4627,4133,29969,29967,29969,29942,29966,29962,29979,29980,29982,29983,29983,29984,29984,29983,29987,29988]} 1. e4 {[%emt 0:13:53]} c5 {[%emt 0:00:02]} 2. Nf3 {[%emt 0:00:32]} d6 {[%emt 0:00:03]} 3. d4 {[%emt 0:03:05]} cxd4 {[%emt 0:00:04]} 4. Nxd4 {[%emt 0:00:06]} Nf6 {[%emt 0:00:10]} 5. Nc3 {[%emt 0:00:10]} g6 {[%emt 0:00:02]} 6. Be3 {[%emt 0:02:28]} Bg7 {[%emt 0:00:19]} 7. f3 {[%emt 0:02:08]} Nc6 {[%emt 0:00:03]} 8. Qd2 {[%emt 0:04:05]} O-O {[%emt 0:00:06]} 9. Bc4 {[%emt 0:06:38]} Nxd4 {[%emt 0:00:12]} 10. Bxd4 {[%emt 0:00:58]} Be6 {[%emt 0:00:03]} 11. Bb3 {[%emt 0:06:48]} Qa5 {[%emt 0:00:03]} 12. O-O-O {[%emt 0:04:35]} b5 {[%emt 0:01:39]} 13. Kb1 {[%emt 0:07:56]} Rfc8 {[%emt 0:06:26]} 14. Rhe1 {[%emt 0:10:32] Black must now prevent Bxe6.} Rc7 {[%emt 0:11:07]} (14... Bxb3 $11 {keeps the balance.} 15. cxb3 Qc7) 15. Bxe6 $16 {[%emt 0:20:41]} fxe6 {[%emt 0:02:12]} 16. e5 {[%emt 0:00:08][%cal Be4e5,Be5f6][%mdl 32]} b4 {[%emt 0:13:32]} (16... dxe5 $16 {was called for.} 17. Rxe5 Rd7) 17. exf6 $18 {[%emt 0:00:32]} bxc3 {[%emt 0:00:10]} 18. Bxc3 {[%emt 0:00:31]} Rxc3 {[%emt 0:00:13]} 19. Qxc3 {[%emt 0:05:48]} Qxc3 {[%emt 0:00:17]} 20. bxc3 {[%emt 0:00:02][%mdl 4096] Endgame. KRR-KRB} Rb8+ {[%emt 0:00:33] [#]} 21. Ka1 $1 {[%emt 0:01:44]} Bxf6 {[%emt 0:00:45]} 22. Rd3 {[%emt 0:00:04]} (22. Rxe6 $2 Bxc3#) 22... Rc8 {[%emt 0:04:42]} 23. Kb2 {[%emt 0:01:26]} Kf7 {[%emt 0:01:23]} 24. Re4 {[%emt 0:00:26]} d5 {[%emt 0:02:55]} (24... a5 {was worth a try.} 25. Rde3 d5 26. Rxe6 Bxc3+ 27. Kc1 (27. Rxc3 Rb8+ 28. Rb3 Rxb3+ 29. Kxb3 Kxe6 $18) 27... Bf6) 25. Rb4 {[%emt 0:00:09]} Be5 {[%emt 0:03:30]} 26. g3 {[%emt 0:01:42]} Rc7 {[%emt 0:01:08]} (26... g5 $142 27. Rb7 a6) 27. a4 {[%emt 0:00:54][%cal Ba2a4,Ba4a5][%mdl 32]} h5 {[%emt 0:03:57]} 28. Kb3 {[%emt 0:00:12]} Bd6 {[%emt 0:02:24]} 29. Rb5 {[%emt 0:00:17]} h4 {[%emt 0:01:08]} (29... g5 $142 30. Rb8 Rxc3+ 31. Rxc3 Bxb8) 30. f4 {[%emt 0:00:30]} Kf6 {[%emt 0:04:16]} 31. a5 {[%emt 0:01:18]} (31. gxh4 Bxf4 32. Rb4 Be5 33. Rf3+ Kg7) 31... hxg3 {[%emt 0:03:00]} 32. hxg3 {[%emt 0:00:05]} Bc5 {[%emt 0:00:25]} 33. Kb2 {[%emt 0:01:49]} Bg1 {[%emt 0:02:07]} 34. Kc1 {[%emt 0:00:51]} Rc4 {[%emt 0:02:17]} 35. Rb4 {[%emt 0:00:43] aiming for Rxc4.} Rc5 {[%emt 0:00:48] [#]} 36. Ra4 $1 {[%emt 0:00:08]} Rb5 {[%emt 0:00:44]} 37. c4 {[%emt 0:00:31]} dxc4 {[%emt 0:01:08]} 38. Rc3 {[%emt 0:00:09]} (38. Rxc4 $6 Rxa5 39. Kb2 Bb6 $16) 38... Bf2 {[%emt 0:01:03]} 39. Kd2 {[%emt 0:00:13] Prevents Be1+} (39. Rcxc4 Bxg3 40. Rcb4 Rf5 $14) (39. Raxc4 $6 Rxa5 40. Kd2 Bb6 $16) 39... Rb1 {[%emt 0:00:52] ...Be1+ would now be deadly.} 40. Ke2 {[%emt 0:01:00]} ({Don't take} 40. Rcxc4 $6 Bxg3 41. Rd4 Kf5 $18) ({Inferior is} 40. Raxc4 Be1+ 41. Ke3 Bxc3 42. Rxc3 Rb5 $11) 40... Be1 {[%emt 0:01:49]} (40... Bc5 41. Raxc4 Bb4) 41. Rca3 {[%emt 0:00:08]} (41. Rcxc4 $142 Bxg3 42. Rc7) 41... c3 $2 {[%emt 0:04:49]} (41... Bb4) 42. Ra1 {[%emt 0:00:05]} Rxa1 {[%emt 0:00:23]} 43. Rxa1 {[%emt 0:00:05]} Bxg3 {[%emt 0:00:05] KR-KB} 44. Kf3 {[%emt 0:00:03]} Bh4 {[%emt 0:00:07]} 45. Rh1 {[%emt 0:03:02]} g5 {[%emt 0:00:01]} 46. Ke4 {[%emt 0:00:12]} e5 {[%emt 0:03:19]} 47. fxe5+ {[%emt 0:00:16]} Ke6 {[%emt 0:00:02]} 48. Rh3 {[%emt 0:00:46]} Be1 {[%emt 0:00:09]} 49. Rh6+ {[%emt 0:00:17] White mates.} Kd7 {[%emt 0:00:39]} 50. Rg6 {[%emt 0:00:26]} g4 {[%emt 0:01:46]} 51. Rxg4 {[%emt 0:00:34]} Kc6 {[%emt 0:00:01]} 52. Rg7 {[%emt 0:00:48]} Bh4 {[%emt 0:00:28]} 53. Rh7 {[%emt 0:00:05]} Bg5 {[%emt 0:00:18]} 54. Kf5 {[%emt 0:00:05]} Be3 {[%emt 0:00:24]} 55. Rxe7 {[%emt 0:00:09]} Kb5 {[%emt 0:00:13]} 56. e6 {[%emt 0:00:09] Black did not feel at home in the position after the opening.   Weighted Error Value: White=0.22 (precise) /Black=0.63.  Mistake:       	White=1     	Black=6      Inaccurate:     	---       	Black=1      OK:         	White=7     	Black=10     Best:        	White=4     	---        Strong:       	White=2     	---} 1-0